bitfinex-derivatives/quotes_SOLF0:USTF0_20241015
["timestamp","ask_amount","ask_price","bid_price","bid_amount"]
[1729012201474,24.77,154.6,154.54,3.2355]
[1729012201777,24.77,154.6,154.5,1.4264]
[1729012201985,7.02,154.61,154.5,1.4264]
[1729012202179,3.234,154.62,154.5,1.4264]
[1729012202675,27.5363,154.63,154.5,1.4264]
[1729012202874,3.2341,154.61,154.53,3.2357]
[1729012203078,3.2341,154.61,154.53,7.02]
[1729012203275,31.79,154.6,154.46,1.338]
[1729012203580,3.2356,154.54,154.5,3.2362]
[1729012203778,24.77,154.56,154.46,2.7526]
[1729012203978,24.77,154.53,154.44,3.2375]
[1729012204175,24.77,154.5,154.39,1.3712]
[1729012204375,24.77,154.46,154.32,20.0]
[1729012204576,4.70647702,154.45,154.33,9.58151001]
[1729012204797,4.70647702,154.45,154.34,1.19029227]
[1729012204977,24.77,154.43,154.34,1.19029227]
[1729012205176,24.77,154.41,154.32,20.0]
[1729012205370,24.77,154.38,154.32,9.1991]
[1729012205779,24.77,154.4,154.32,9.1991]
[1729012205994,31.79,154.42,154.32,9.1991]
[1729012206283,24.77,154.42,154.32,9.1991]
[1729012206471,3.2374,154.45,154.33,33.0955]
[1729012206980,24.77,154.4,154.32,9.1991]
[1729012207182,24.77,154.42,154.32,9.1991]
[1729012207681,24.77,154.4,154.32,9.1991]
[1729012209677,3.2392,154.37,154.32,9.1991]
[1729012210388,10.35583722,154.41,154.32,9.1991]
[1729012210579,7.04,154.41,154.32,9.1991]
[1729012210985,2.6785,154.45,154.32,16.2391]
[1729012211287,24.77,154.46,154.33,27.5415]
[1729012211784,24.77,154.46,154.33,2.7715]
[1729012212284,24.77,154.46,154.33,9.8115]
[1729012212482,3.2378,154.44,154.38,3.2387]
[1729012212676,24.77,154.46,154.33,34.5815]
[1729012212880,24.77,154.42,154.33,2.7715]
[1729012213284,24.77,154.39,154.32,9.1991]
[1729012213488,3.17713396,154.38,154.32,9.1991]
[1729012213689,3.2393,154.37,154.32,9.1991]
[1729012213883,24.77,154.39,154.32,9.1991]
[1729012214079,3.2389,154.38,154.33,3.2397]
[1729012214278,24.77,154.39,154.32,9.1991]
[1729012214992,28.0088,154.39,154.34,3.2397]
[1729012215289,24.77,154.39,154.34,3.2397]
[1729012215483,28.0087,154.39,154.34,3.2397]
[1729012215787,28.0087,154.39,154.32,9.1991]
[1729012215788,24.77,154.39,154.32,9.1991]
[1729012216280,24.77,154.44,154.33,7.04]
[1729012217489,3.2376,154.45,154.4,3.2383]
[1729012217683,31.81,154.46,154.35,3.23367452]
[1729012217878,31.81,154.46,154.36,2.7188]
[1729012218086,24.77,154.44,154.36,2.7188]
[1729012218285,24.77,154.41,154.33,7.04]
[1729012219183,24.77,154.39,154.33,3.2397]
[1729012219388,24.77,154.39,154.32,9.1991]
[1729012219588,3.2392,154.37,154.32,12.4392]
[1729012219790,24.77,154.39,154.32,12.4392]
[1729012220285,24.77,154.36,154.32,9.1991]
[1729012221292,24.77,154.34,154.32,9.1991]
[1729012221681,3.2399,154.33,154.32,7.3134]
[1729012221881,24.77,154.34,154.22,4.2098]
[1729012222081,3.2407,154.3,154.26,3.2412]
[1729012222297,24.77,154.31,154.23,7.04]
[1729012222492,24.77,154.31,154.24,1.19121516]
[1729012222692,7.04,154.36,154.24,1.19121516]
[1729012222693,24.77,154.34,154.24,1.19121516]
[1729012222892,31.81,154.36,154.24,1.19121516]
[1729012223291,3.2401,154.33,154.24,1.19121516]
[1729012223794,24.77,154.34,154.27,3.241]
[1729012223994,24.77,154.31,154.23,7.04]
[1729012224195,24.77,154.29,154.22,4.2098]
[1729012224493,3.2411,154.28,154.22,4.2098]
[1729012224698,24.77,154.29,154.22,4.2098]
[1729012224997,28.0109,154.29,154.24,3.2417]
[1729012225493,3.2417,154.25,154.2,3.2425]
[1729012225683,24.77,154.29,154.18,2.769]
[1729012225884,24.77,154.26,154.18,2.769]
[1729012226290,1.3356,154.3,154.19,28.03774716]
[1729012226497,24.77,154.33,154.19,25.96168684]
[1729012226787,24.77,154.31,154.2,1.19168684]
[1729012226987,24.77,154.31,154.21,7.04]
[1729012227596,24.77,154.31,154.22,1.312]
[1729012228390,3.2411,154.28,154.23,3.2419]
[1729012228598,24.77,154.28,154.23,3.2419]
[1729012228901,24.77,154.28,154.18,2.769]
[1729012229098,24.77,154.28,154.2,3.2425]
[1729012229393,35.11426607,154.31,154.18,2.769]
[1729012229394,24.77,154.26,154.18,2.769]
[1729012229698,24.77,154.29,154.18,2.769]
[1729012229896,31.79,154.31,154.19,3.23359699]
[1729012230089,3.241,154.28,154.23,3.2419]
[1729012230397,3.241,154.28,154.18,2.769]
[1729012230604,3.241,154.28,154.23,3.2419]
[1729012230895,3.2402,154.32,154.22,7.02]
[1729012231093,24.77,154.34,154.23,1.312]
[1729012231288,24.77,154.34,154.23,4.52211673]
[1729012231489,28.0098,154.34,154.23,5.71347253]
[1729012231697,24.77,154.34,154.24,1.1913558]
[1729012231992,24.77,154.34,154.23,1.312]
[1729012232198,24.77,154.31,154.24,3.2418]
[1729012232394,24.77,154.29,154.21,7.02]
[1729012232591,3.2414,154.26,154.21,7.02]
[1729012232792,24.77,154.26,154.18,2.769]
[1729012233094,3.2422,154.23,154.18,1.4181]
[1729012233298,24.77,154.24,154.16,3.2433]
[1729012233493,24.77,154.24,154.13,7.02]
[1729012233699,24.77,154.22,154.12,2.6722]
[1729012233898,7.02,154.21,154.14,1.19204174]
[1729012234097,3.2436,154.16,154.12,1.3602]
[1729012234298,24.77,154.19,154.07,1.3543]
[1729012234503,24.77,154.19,154.07,8.3743]
[1729012234699,3.2435,154.16,154.07,8.3743]
[1729012234898,24.77,154.19,154.08,1.19238936]
[1729012235196,3.244,154.14,154.08,1.19238936]
[1729012235405,24.77,154.16,154.06,1.3602]
[1729012235591,24.77,154.16,154.11,3.2445]
[1729012235796,1.4077,154.2,154.06,27.4845]
[1729012235797,28.0129,154.19,154.06,27.4845]
[1729012236001,24.77,154.24,154.09,24.77]
[1729012236197,24.77,154.21,154.1,7.04]
[1729012236400,24.77,154.21,154.09,24.77]
[1729012236701,24.77,154.24,154.11,24.77]
[1729012236895,10.282,154.23,154.11,25.962296]
[1729012237398,3.2426,154.21,154.15,3.2436]
[1729012237695,7.04,154.23,154.11,24.77]
[1729012237903,24.77,154.21,154.13,3.2441]
[1729012238104,24.77,154.19,154.1,7.04]
[1729012238300,24.77,154.21,154.1,7.04]
[1729012238501,3.2437,154.16,154.07,7.04]
[1729012238799,7.04,154.18,154.07,7.04]
[1729012239208,3.2435,154.16,154.07,7.04]
[1729012239393,24.77,154.17,154.09,3.2449]
[1729012239596,7.04,154.18,154.06,34.5245]
[1729012239900,31.81,154.21,154.09,24.77]
[1729012240204,40.5,154.2,154.08,40.5]
[1729012240808,43.7428,154.2,154.15,3.2437]
[1729012241000,40.5,154.2,154.09,1.19247225]
[1729012241304,40.5,154.2,154.13,3.2441]
[1729012241508,3.2433,154.17,154.09,7.04]
[1729012241693,40.5,154.2,154.09,7.04]
[1729012241893,3.2434,154.17,154.09,7.04]
[1729012242092,40.5,154.2,154.12,3.2443]
[1729012242296,40.5,154.2,154.09,7.04]
[1729012242501,3.243,154.19,154.09,7.04]
[1729012243101,40.5,154.2,154.09,7.04]
[1729012243705,43.7427,154.2,154.15,3.2436]
[1729012244005,40.5,154.2,154.09,7.04]
[1729012245005,3.2431,154.18,154.14,3.2439]
[1729012245207,3.2431,154.18,154.09,7.04]
[1729012245499,3.2431,154.18,154.13,3.244]
[1729012245904,7.04,154.22,154.1,40.5]
[1729012246999,3.2428,154.2,154.15,3.2436]
[1729012247498,3.2425,154.21,154.16,3.2434]
[1729012247805,3.2425,154.21,154.1,40.5]
[1729012248005,3.2427,154.2,154.15,3.2435]
[1729012248203,40.5,154.23,154.13,3.32035559]
[1729012248404,40.5,154.23,154.14,4.1832]
[1729012248697,40.5,154.26,154.14,4.1832]
[1729012248900,8.4477,154.27,154.15,7.04]
[1729012249623,40.5,154.26,154.15,7.04]
[1729012249902,40.5,154.26,154.18,3.2429]
[1729012249903,3.2422,154.23,154.18,3.2429]
[1729012250103,40.5,154.23,154.14,4.1832]
[1729012250405,3.2426,154.21,154.16,3.2434]
[1729012251000,40.5,154.23,154.14,4.1832]
[1729012251309,40.5,154.2,154.1,2.6821]
[1729012251607,40.5,154.15,154.06,1.3761]
[1729012252010,3.244,154.14,154.09,3.2448]
[1729012252198,40.5,154.15,154.06,1.3761]
[1729012252502,3.2456,154.06,153.9,5.6586478]
[1729012252697,40.5,154.07,153.97,1.3776]
[1729012252905,40.5,154.05,153.98,1.3477]
[1729012253201,7.04,154.09,153.98,1.3477]
[1729012253202,40.5,154.09,153.98,4.53995739]
[1729012253403,40.5,154.12,153.98,3.21887306]
[1729012253598,40.5,154.05,153.95,3.2478]
[1729012253908,40.5,154.08,153.96,2.54108366]
[1729012254205,40.5,154.08,153.96,10.1453]
[1729012254400,40.5,154.08,153.96,13.39955243]
[1729012254600,7.42,154.1,153.96,53.89955243]
[1729012255303,40.5,154.12,153.99,40.5]
[1729012255500,7.42,154.13,154.0,1.3733]
[1729012255704,7.42,154.13,154.01,47.92]
[1729012256107,40.5,154.14,154.01,47.92]
[1729012258404,41.8843,154.19,154.05,40.5]
[1729012258607,41.8843,154.19,154.06,10.2379]
[1729012258808,7.42,154.21,154.07,40.5]
[1729012259002,40.5,154.19,154.06,13.48541645]
[1729012259401,3.2443,154.13,154.06,13.4835]
[1729012259707,3.2443,154.13,154.06,6.0635]
[1729012260013,3.2446,154.11,154.06,2.8179]
[1729012260206,40.5,154.14,154.01,40.5]
[1729012260512,43.744,154.14,154.07,3.2452]
[1729012260703,3.244,154.14,154.04,3.32273346]
[1729012260899,1.4097,154.18,154.02,2.8179]
[1729012261101,40.5,154.22,154.08,40.5]
[1729012261307,1.4286,154.25,154.11,40.5]
[1729012261601,3.2425,154.21,154.15,3.2435]
[1729012261803,1.4286,154.25,154.12,2.6671]
[1729012262004,1.4286,154.25,154.13,40.5]
[1729012262210,1.4286,154.25,154.14,7.78]
[1729012262605,3.2423,154.22,154.15,3.2437]
[1729012262803,3.2423,154.22,154.14,7.78]
[1729012263119,40.5,154.17,154.09,1.3564]
[1729012263414,40.5,154.12,154.02,7.78]
[1729012263911,48.28,154.12,154.0,4.0355]
[1729012264109,40.5,154.1,154.0,4.0355]
[1729012264414,7.78,154.14,154.0,4.0355]
[1729012264711,40.5,154.1,154.0,4.0355]
[1729012264914,3.2452,154.08,154.02,3.2463]
[1729012265109,7.78,154.14,154.03,7.78]
[1729012265308,40.5,154.15,154.03,51.55084278]
[1729012265504,3.2439,154.14,154.09,3.2448]
[1729012265705,40.5,154.15,154.03,51.55084278]
[1729012266101,40.5,154.18,154.1,3.2446]
[1729012266301,40.5,154.18,154.05,40.5]
[1729012266506,40.5,154.13,154.0,4.0355]
[1729012266711,48.28,154.13,154.0,4.0355]
[1729012267106,40.5,154.16,154.03,40.5]
[1729012267317,40.5,154.18,154.05,40.5]
[1729012267517,1.3902,154.19,154.08,40.5]
[1729012267816,48.28,154.21,154.09,11.9259]
[1729012268017,7.78,154.21,154.11,40.5]
[1729012268514,40.5,154.19,154.09,4.1459]
[1729012269114,3.2441,154.13,154.09,4.1459]
[1729012269615,40.5,154.14,154.02,70.1]
[1729012269814,24.92,154.15,154.02,77.88]
[1729012270319,24.92,154.12,154.02,7.78]
[1729012270703,24.92,154.15,154.02,7.78]
[1729012271007,1.3902,154.18,154.02,7.78]
[1729012271008,32.7,154.17,154.04,24.92]
[1729012271308,24.92,154.24,154.09,24.92]
[1729012271503,24.92,154.24,154.12,24.92]
[1729012271706,3.2425,154.21,154.16,3.2433]
[1729012271906,7.78,154.25,154.13,9.0907]
[1729012271907,1.4297,154.26,154.14,24.92]
[1729012272207,3.2412,154.27,154.17,24.92]
[1729012272409,3.2412,154.27,154.18,10.5294]
[1729012272705,24.92,154.29,154.18,10.5294]
[1729012273112,24.92,154.29,154.19,7.78]
[1729012273416,24.92,154.37,154.22,24.92]
[1729012273712,24.92,154.37,154.29,3.2406]
[1729012273915,40.48,154.37,154.28,7.78]
[1729012274111,40.48,154.37,154.27,7.78]
[1729012274312,3.2396,154.35,154.3,3.2403]
[1729012274522,7.78,154.39,154.27,7.78]
[1729012275109,40.48,154.35,154.27,7.78]
[1729012275609,7.78,154.39,154.27,48.26]
[1729012275811,40.48,154.4,154.28,2.7493]
[1729012276012,3.2395,154.36,154.28,2.7493]
[1729012276217,40.48,154.37,154.28,2.7493]
[1729012277011,40.48,154.37,154.28,10.9293]
[1729012277614,3.2399,154.34,154.28,14.1701]
[1729012277814,3.2399,154.34,154.28,10.9293]
[1729012278413,3.2401,154.33,154.28,10.9293]
[1729012279117,3.2401,154.33,154.28,14.1701]
[1729012279310,3.2391,154.37,154.28,10.9293]
[1729012279508,40.48,154.4,154.28,10.9293]
[1729012279820,3.2399,154.34,154.29,3.2407]
[1729012280018,3.2399,154.34,154.28,10.9293]
[1729012280019,40.48,154.38,154.28,1.3396]
[1729012280614,9.5275,154.41,154.29,40.48]
[1729012280818,40.48,154.43,154.35,3.2394]
[1729012281311,3.2386,154.4,154.35,3.2394]
[1729012281512,40.48,154.43,154.35,3.2394]
[1729012281711,40.48,154.45,154.32,48.66]
[1729012281918,40.48,154.45,154.33,2.6519]
[1729012282418,3.2378,154.43,154.34,40.48]
[1729012283122,70.1,154.46,154.34,40.48]
[1729012283421,9.5998,154.47,154.34,40.48]
[1729012283611,9.5998,154.47,154.39,3.2386]
[1729012283818,107.08574407,154.48,154.37,48.64]
[1729012284213,8.16,154.49,154.39,40.48]
[1729012284415,11.3238726,154.52,154.42,40.48]
[1729012284718,11.3238726,154.52,154.42,3.2379]
[1729012284719,3.2368,154.49,154.42,3.2379]
[1729012284915,40.48,154.48,154.38,1.3651]
[1729012285424,3.238,154.43,154.38,1.3651]
[1729012285920,8.16,154.47,154.38,1.3651]
[1729012285921,3.2376,154.45,154.4,3.2382]
[1729012286220,40.48,154.5,154.39,40.48]
[1729012286722,8.16,154.51,154.41,40.48]
[1729012286926,8.16,154.51,154.42,1.3858]
[1729012287122,1.3074,154.53,154.42,1.3858]
[1729012287314,40.48,154.52,154.41,8.16]
[1729012287518,3.2371,154.47,154.41,11.3982]
[1729012287719,40.48,154.49,154.41,11.3982]
[1729012288019,3.2376,154.45,154.41,11.3982]
[1729012288223,40.48,154.49,154.41,8.16]
[1729012288624,3.2374,154.45,154.41,8.16]
[1729012289026,3.2374,154.45,154.41,11.3981]
[1729012289321,40.48,154.49,154.41,8.16]
[1729012289512,8.16,154.5,154.43,3.2376]
[1729012289818,3.2364,154.5,154.41,48.64]
[1729012290022,40.48,154.55,154.41,48.64]
[1729012290023,40.48,154.55,154.48,3.2368]
[1729012290222,40.48,154.55,154.42,1.3991]
[1729012290524,3.2363,154.51,154.48,3.2368]
[1729012291120,3.2356,154.54,154.48,3.2368]
[1729012291317,8.16,154.56,154.43,1.3653]
[1729012291517,40.48,154.55,154.43,1.3653]
[1729012291818,40.48,154.55,154.45,3.2374]
[1729012292024,40.48,154.52,154.39,40.48]
[1729012292323,40.48,154.49,154.38,10.9005]
[1729012292718,40.48,154.47,154.38,2.7405]
[1729012292913,40.48,154.47,154.38,1.3651]
[1729012293624,8.16,154.5,154.38,41.8451]
[1729012293818,3.2373,154.46,154.38,26.2351]
[1729012294020,8.16,154.5,154.38,26.2351]
[1729012294221,8.16,154.5,154.42,3.238]
[1729012294422,8.16,154.5,154.38,26.2351]
[1729012294820,24.87,154.46,154.38,1.3651]
[1729012295018,24.87,154.49,154.38,1.3651]
[1729012295224,8.16,154.5,154.43,3.2376]
[1729012295427,24.87,154.54,154.41,24.87]
[1729012295625,3.2365,154.5,154.42,1.3816]
[1729012295928,8.16,154.53,154.43,24.87]
[1729012296118,24.87,154.56,154.43,24.87]
[1729012296321,24.87,154.56,154.45,3.2373]
[1729012296623,24.87,154.56,154.43,24.87]
[1729012296825,3.2359,154.53,154.43,24.87]
[1729012297222,24.87,154.56,154.43,24.87]
[1729012297422,3.2357,154.54,154.43,24.87]
[1729012297621,24.87,154.56,154.49,3.2365]
[1729012297817,3.2352,154.56,154.46,24.87]
[1729012298122,33.03,154.59,154.46,24.87]
[1729012298320,3.2361,154.52,154.45,8.16]
[1729012298529,24.87,154.56,154.42,26.2516]
[1729012298823,24.87,154.54,154.43,8.16]
[1729012299429,24.87,154.54,154.43,9.5115]
[1729012299823,3.2362,154.51,154.45,3.2373]
[1729012300024,24.87,154.54,154.45,3.2373]
[1729012300427,7.7745,154.61,154.46,3.237]
[1729012300428,3.2361,154.52,154.46,3.237]
[1729012300625,33.03,154.59,154.47,24.87]
[1729012301337,1.3061,154.61,154.53,24.87]
[1729012301526,3.2345,154.59,154.53,24.87]
[1729012301835,8.16,154.67,154.55,24.87]
[1729012302124,8.16,154.67,154.58,24.87]
[1729012302330,3.2334,154.65,154.61,3.2339]
[1729012302718,8.16,154.67,154.58,24.87]
[1729012303132,8.16,154.67,154.55,24.87]
[1729012303928,8.16,154.67,154.55,40.38]
[1729012304128,3.2336,154.64,154.58,3.2346]
[1729012304328,8.16,154.67,154.55,40.38]
[1729012305033,3.2338,154.63,154.59,3.2343]
[1729012305429,3.2335,154.64,154.6,3.2342]
[1729012306333,8.16,154.67,154.59,3.2343]
[1729012306827,3.2335,154.64,154.6,3.2342]
[1729012307226,8.3,154.69,154.58,40.38]
[1729012307630,3.2333,154.65,154.58,40.38]
[1729012307838,8.3,154.69,154.6,40.38]
[1729012308242,8.3,154.69,154.6,48.68]
[1729012308444,1.3947,154.7,154.6,48.68]
[1729012308643,69.94,154.73,154.6,48.68]
[1729012308644,3.2325,154.69,154.65,3.233]
[1729012309135,40.38,154.72,154.6,8.3]
[1729012309338,81.55079769,154.73,154.58,43.1854]
[1729012309339,40.38,154.69,154.58,43.1854]
[1729012309734,40.38,154.67,154.56,8.3]
[1729012309938,40.38,154.64,154.54,1.3059]
[1729012310131,40.38,154.62,154.54,1.3059]
[1729012310532,1.3815,154.65,154.54,1.3059]
[1729012310533,40.38,154.64,154.54,1.3059]
[1729012310732,43.61453274,154.64,154.54,1.3059]
[1729012310938,3.2347,154.59,154.55,3.2351]
[1729012311145,43.61453274,154.64,154.55,3.2351]
[1729012311441,3.2347,154.59,154.55,3.2351]
[1729012311635,43.61453274,154.64,154.55,3.2351]
[1729012312045,3.2346,154.59,154.56,3.235]
[1729012312231,43.61453274,154.64,154.54,1.3059]
[1729012312436,3.23453274,154.64,154.54,1.3059]
[1729012312639,3.2345,154.6,154.57,3.2349]
[1729012312944,3.23453274,154.64,154.54,1.3059]
[1729012313335,3.23453274,154.64,154.56,3.2349]
[1729012313740,1.3815,154.65,154.54,1.3059]
[1729012313942,1.3815,154.65,154.58,3.2346]
[1729012314240,4.63285904,154.65,154.54,1.3059]
[1729012314641,3.2344,154.6,154.57,3.2348]
[1729012315444,40.38,154.62,154.54,1.3059]
[1729012315743,40.38,154.62,154.52,1.3457]
[1729012316141,3.23809215,154.63,154.52,1.3457]
[1729012316334,1.3815,154.65,154.52,41.7257]
[1729012316536,1.3815,154.65,154.55,40.38]
[1729012316837,3.234,154.62,154.58,3.2347]
[1729012317036,3.234,154.62,154.55,40.38]
[1729012317233,1.3815,154.65,154.55,40.38]
[1729012317438,40.38,154.62,154.51,8.3]
[1729012317644,40.38,154.62,154.52,3.2358]
[1729012317844,3.2352,154.56,154.5,8.3]
[1729012318047,3.27714507,154.6,154.49,41.6935]
[1729012318240,40.38,154.62,154.5,8.3]
[1729012319038,43.59890772,154.62,154.5,8.3]
[1729012319241,43.59890772,154.62,154.54,3.2353]
[1729012319642,3.2344,154.6,154.52,40.38]
[1729012319842,40.38,154.64,154.56,3.235]
[1729012320248,3.2339,154.62,154.56,3.235]
[1729012320550,43.55134722,154.64,154.56,3.235]
[1729012320737,8.3,154.67,154.57,40.38]
[1729012320941,8.3,154.67,154.58,1.4353]
[1729012321145,8.3,154.67,154.61,3.2339]
[1729012321353,8.3,154.71,154.59,40.38]
[1729012321543,8.3,154.71,154.58,1.4353]
[1729012321544,40.38,154.7,154.58,1.4353]
[1729012321739,40.38,154.7,154.6,3.2341]
[1729012322048,3.2338,154.63,154.6,3.2341]
[1729012322248,40.38,154.7,154.58,1.4353]
[1729012322649,40.38,154.67,154.56,1.3639]
[1729012322852,40.38,154.65,154.53,9.7353]
[1729012323148,3.2355,154.55,154.43,8.3]
[1729012323346,40.38,154.56,154.45,2.7224]
[1729012323754,3.2363,154.51,154.45,2.7224]
[1729012324054,3.2011524,154.55,154.45,2.7224]
[1729012324541,48.68,154.54,154.45,1.3355]
[1729012325143,48.68,154.54,154.45,4.5729]
[1729012325350,48.68,154.54,154.39,40.38]
[1729012325351,40.38,154.51,154.39,40.38]
[1729012325555,3.2381,154.42,154.38,4.5743]
[1729012325755,3.2381,154.42,154.38,3.2388]
[1729012325951,48.68,154.48,154.34,48.68]
[1729012326257,3.16489706,154.47,154.34,48.68]
[1729012326550,48.68,154.48,154.34,48.68]
[1729012326746,3.2382,154.42,154.37,3.2389]
[1729012326943,1.373,154.47,154.37,3.2389]
[1729012327247,8.3,154.5,154.39,40.38]
[1729012327447,8.3,154.5,154.34,8.3]
[1729012327448,8.3,154.5,154.36,40.38]
[1729012327644,40.38,154.48,154.39,3.2385]
[1729012327849,40.38,154.48,154.36,40.38]
[1729012328243,40.38,154.46,154.34,40.38]
[1729012328457,12.93043078,154.45,154.34,40.38]
[1729012328945,40.38,154.43,154.33,8.3]
[1729012329356,40.38,154.38,154.3,1.3355]
[1729012329643,40.38,154.38,154.25,48.68]
[1729012329853,8.3,154.39,154.28,40.38]
[1729012330352,40.38,154.38,154.26,1.3591]
[1729012331258,3.2285455,154.37,154.26,1.3591]
[1729012331453,40.38,154.38,154.26,1.3591]
[1729012331656,40.38,154.38,154.27,40.38]
[1729012332063,3.2399,154.34,154.27,40.38]
[1729012332254,40.38,154.41,154.27,40.38]
[1729012332449,8.32,154.4,154.27,40.38]
[1729012332654,40.38,154.38,154.27,40.38]
[1729012333258,3.2396,154.35,154.31,3.2403]
[1729012334054,3.2394,154.36,154.31,3.2403]
[1729012334252,8.32,154.4,154.31,3.2403]
[1729012334560,3.2397,154.35,154.31,3.2403]
[1729012334754,40.38,154.38,154.27,40.38]
[1729012334955,40.38,154.38,154.29,3.2406]
[1729012335154,3.23718114,154.37,154.26,1.3591]
[1729012335350,40.38,154.38,154.26,1.3591]
[1729012335553,8.32,154.4,154.3,3.2405]
[1729012335554,48.7,154.4,154.3,3.2405]
[1729012335853,3.2397,154.35,154.3,3.2405]
[1729012336048,3.2397,154.35,154.27,40.38]
[1729012336255,48.7,154.4,154.27,40.38]
[1729012336466,8.32,154.4,154.29,40.38]
[1729012336756,40.38,154.37,154.26,1.3591]
[1729012336958,40.38,154.32,154.24,2.7468]
[1729012337163,40.38,154.32,154.23,3.2418]
[1729012337655,3.2412,154.28,154.23,3.2418]
[1729012337855,40.38,154.32,154.23,3.2418]
[1729012338856,40.38,154.3,154.21,1.4348]
[1729012339052,40.38,154.3,154.19,2.7401]
[1729012339249,40.38,154.3,154.2,1.416]
[1729012339460,48.56,154.33,154.21,40.38]
[1729012340061,3.2411,154.28,154.24,3.2416]
[1729012340254,48.56,154.33,154.21,40.38]
[1729012340759,40.38,154.3,154.2,1.416]
[1729012341161,3.2414,154.26,154.2,1.416]
[1729012341362,3.30220492,154.28,154.2,1.416]
[1729012341565,40.38,154.27,154.17,8.18]
[1729012341763,8.18,154.28,154.18,40.38]
[1729012342151,3.2413,154.27,154.21,3.2424]
[1729012342358,40.38,154.27,154.17,1.4173]
[1729012343561,40.38,154.32,154.18,40.38]
[1729012343768,8.18,154.31,154.21,40.38]
[1729012343973,8.18,154.31,154.22,2.7983]
[1729012344469,8.18,154.31,154.21,40.38]
[1729012344666,3.2412,154.27,154.24,3.2418]
[1729012344869,41.7537,154.35,154.21,40.38]
[1729012345060,1.3737,154.35,154.23,40.38]
[1729012345263,8.18,154.34,154.29,3.2406]
[1729012345460,8.18,154.34,154.26,40.38]
[1729012345770,3.2401,154.32,154.29,3.2408]
[1729012345969,40.38,154.38,154.26,40.38]
[1729012345970,8.18,154.38,154.26,40.38]
[1729012346163,8.18,154.38,154.28,40.38]
[1729012346360,8.18,154.38,154.33,3.2398]
[1729012346856,1.3737,154.42,154.34,3.2396]
[1729012346857,3.2391,154.37,154.34,3.2396]
[1729012347056,9.5537,154.42,154.31,40.38]
[1729012347267,48.56,154.48,154.36,40.38]
[1729012347469,3.18715156,154.47,154.37,1.3588]
[1729012347966,3.2375,154.45,154.37,1.3588]
[1729012348161,3.2375,154.45,154.37,2.6968]
[1729012348367,1.4243,154.48,154.37,2.6968]
[1729012348564,3.2372,154.46,154.37,2.6968]
[1729012348760,1.4243,154.48,154.38,40.38]
[1729012348965,3.237,154.47,154.41,3.2382]
[1729012349171,3.26948009,154.52,154.41,40.38]